bitfinex-derivatives/quotes_BTCF0:USTF0_20210404
["timestamp","ask_amount","ask_price","bid_price","bid_amount"]
[1617506666061,3.773,57189.0,57188.0,0.57259211]
[1617506666262,3.773,57189.0,57187.0,0.57261784]
[1617506666660,3.773,57189.0,57186.0,0.57261917]
[1617506667061,3.773,57189.0,57183.0,0.57181938]
[1617506667260,0.23849655,57195.0,57183.0,0.57181938]
[1617506667462,0.23849655,57195.0,57187.0,2.9637]
[1617506667663,0.13124,57195.0,57191.0,0.10725655]
[1617506669764,0.10725655,57192.0,57191.0,0.10725655]
[1617506677375,0.22920655,57192.0,57191.0,0.10725655]
[1617506680878,0.10725655,57192.0,57191.0,0.10725655]
[1617506687487,3.6724,57205.0,57191.0,1.10725655]
[1617506687686,3.6724,57205.0,57204.0,0.10725655]
[1617506687887,0.492,57211.0,57204.0,0.27175655]
[1617506688086,0.492,57211.0,57208.0,3.2101]
[1617506689397,0.492,57211.0,57204.0,0.27175655]
[1617506689600,0.492,57211.0,57204.0,0.10725655]
[1617506689788,3.67125655,57205.0,57204.0,0.10725655]
[1617506698195,3.67125655,57205.0,57186.0,0.57179631]
[1617506698396,0.10725655,57205.0,57186.0,0.57179631]
[1617506698797,2.7791,57187.0,57183.0,0.57182306]
[1617506699796,2.7791,57187.0,57186.0,0.10725655]
[1617506700998,0.10725655,57189.0,57186.0,0.24446655]
[1617506701198,0.4999,57206.0,57186.0,0.24446655]
[1617506701400,0.4999,57206.0,57188.0,3.4577]
[1617506701799,0.4999,57206.0,57205.0,0.10725655]
[1617506702001,0.4999,57206.0,57205.0,0.24906655]
[1617506704399,0.4999,57206.0,57205.0,1.24906655]
[1617506704601,0.4999,57206.0,57205.0,0.24906655]
[1617506707807,0.60715655,57206.0,57205.0,0.24906655]
[1617506709109,0.4999,57206.0,57205.0,0.24906655]
[1617506709908,4.0064,57206.0,57205.0,0.24906655]
[1617506714214,0.4999,57206.0,57205.0,1.24906655]
[1617506714415,0.4999,57206.0,57205.0,5.91036655]
[1617506714615,0.43791305,57219.0,57205.0,5.91036655]
[1617506714817,0.43791305,57219.0,57205.0,6.05379454]
[1617506715015,0.43875542,57227.0,57218.0,1.0]
[1617506715215,0.43875542,57227.0,57218.0,1.14411]
[1617506715417,0.43908603,57232.0,57226.0,3.6526]
[1617506715817,0.43960616,57234.0,57231.0,0.10725655]
[1617506716017,0.43960616,57234.0,57231.0,0.27178655]
[1617506716217,0.99343884,57239.0,57231.0,0.27178655]
[1617506716218,0.43974191,57236.0,57231.0,0.27178655]
[1617506716617,0.9338549,57239.0,57231.0,0.27178655]
[1617506717419,0.43989187,57238.0,57231.0,0.27178655]
[1617506717819,0.4939,57239.0,57237.0,0.10725655]
[1617506719925,0.10725655,57238.0,57237.0,0.10725655]
[1617506720323,0.10725655,57238.0,57231.0,0.16453]
[1617506721123,0.10725655,57238.0,57226.0,3.6526]
[1617506721923,0.4939,57239.0,57235.0,0.10725655]
[1617506722123,0.4939,57239.0,57235.0,0.25230655]
[1617506724026,0.10725655,57236.0,57235.0,0.25230655]
[1617506726832,0.10725655,57236.0,57235.0,1.25230655]
[1617506729333,0.4939,57239.0,57235.0,1.25230655]
[1617506730735,0.4939,57239.0,57236.0,1.0]
[1617506734139,0.4939,57239.0,57237.0,1.0]
[1617506734339,0.4939,57239.0,57238.0,1.0]
[1617506738843,0.4939,57239.0,57238.0,4.3712]
[1617506748353,0.4939,57239.0,57235.0,0.25230655]
[1617506748553,3.7645,57236.0,57235.0,0.10725655]
[1617506750958,3.7645,57236.0,57235.0,1.10725655]
[1617506751158,0.4939,57239.0,57235.0,1.10725655]
[1617506751557,0.4939,57239.0,57236.0,1.0]
[1617506751758,0.4939,57239.0,57237.0,1.0]
[1617506752158,0.4939,57239.0,57238.0,1.0]
[1617506753161,0.4939,57239.0,57237.0,1.0]
[1617506753360,0.4939,57239.0,57236.0,1.0]
[1617506753759,0.4939,57239.0,57237.0,1.0]
[1617506754159,0.4939,57239.0,57236.0,1.0]
[1617506754658,0.4939,57239.0,57238.0,1.0]
[1617506755459,0.4939,57239.0,57235.0,0.10725655]
[1617506755660,0.4939,57239.0,57237.0,1.0]
[1617506756059,0.4939,57239.0,57235.0,0.10725655]
[1617506756060,0.4939,57239.0,57238.0,1.0]
[1617506757362,0.4939,57239.0,57235.0,0.10725655]
[1617506757761,0.4939,57239.0,57238.0,1.0]
[1617506762872,0.4939,57239.0,57235.0,0.10725655]
[1617506763771,0.4939,57239.0,57238.0,1.0]
[1617506764170,0.4939,57239.0,57235.0,0.10725655]
[1617506764570,0.0531,57238.0,57235.0,0.10725655]
[1617506764771,0.4939,57239.0,57235.0,0.10725655]
[1617506764972,0.4939,57239.0,57237.0,1.0]
[1617506765372,0.4939,57239.0,57235.0,0.10725655]
[1617506768475,0.4939,57239.0,57238.0,1.0]
[1617506779890,0.4939,57239.0,57235.0,0.10725655]
[1617506780092,0.4939,57239.0,57238.0,1.0]
[1617506780691,0.4939,57239.0,57235.0,0.10725655]
[1617506780692,0.4939,57239.0,57237.0,1.0]
[1617506781093,0.4939,57239.0,57236.0,1.0]
[1617506781493,0.4939,57239.0,57238.0,1.0]
[1617506781693,0.4939,57239.0,57238.0,1.11599]
[1617506781893,0.4939,57239.0,57238.0,0.11599]
[1617506782296,0.4939,57239.0,57238.0,1.11599]
[1617506784898,0.4939,57239.0,57238.0,0.11599]
[1617506785096,0.4939,57239.0,57235.0,0.10725655]
[1617506785897,0.4939,57239.0,57235.0,1.10725655]
[1617506786096,0.4939,57239.0,57236.0,1.0]
[1617506786497,0.4939,57239.0,57237.0,1.0]
[1617506786697,0.4939,57239.0,57238.0,1.0]
[1617506787299,0.4939,57239.0,57237.0,0.1587]
[1617506789901,0.4939,57239.0,57238.0,1.0]
[1617506791000,0.4939,57239.0,57237.0,0.1587]
[1617506791201,0.4939,57239.0,57238.0,1.0]
[1617506791500,0.4939,57239.0,57237.0,0.1587]
[1617506791701,0.4939,57239.0,57236.0,1.0]
[1617506792902,0.4939,57239.0,57237.0,1.0]
[1617506793302,0.4939,57239.0,57236.0,1.0]
[1617506794202,0.4939,57239.0,57237.0,1.0]
[1617506794402,0.4939,57239.0,57236.0,1.0]
[1617506795205,0.4939,57239.0,57237.0,1.0]
[1617506795403,0.4939,57239.0,57236.0,1.0]
[1617506795803,0.4939,57239.0,57237.0,1.0]
[1617506796004,0.4939,57239.0,57236.0,0.13485]
[1617506797003,0.4939,57239.0,57237.0,1.0]
[1617506797404,0.4939,57239.0,57236.0,1.13485]
[1617506798204,0.4939,57239.0,57237.0,1.0]
[1617506798503,0.4939,57239.0,57236.0,0.13485]
[1617506799704,0.4939,57239.0,57238.0,1.0]
[1617506800705,0.44328727,57249.0,57238.0,1.0]
[1617506800904,0.44328727,57249.0,57248.0,2.6215]
[1617506801105,0.44342946,57251.0,57248.0,2.7261]
[1617506801707,0.44370465,57255.0,57250.0,1.0]
[1617506802107,0.44396351,57257.0,57256.0,1.0]
[1617506802508,0.44400008,57258.0,57256.0,0.10725655]
[1617506802707,0.44400008,57258.0,57256.0,1.10725655]
[1617506802910,0.44416232,57259.0,57256.0,1.10725655]
[1617506803107,0.44416232,57259.0,57257.0,1.0]
[1617506803307,0.44416232,57259.0,57258.0,1.0]
[1617506803509,0.44426421,57260.0,57258.0,1.0]
[1617506803911,0.44426421,57260.0,57256.0,0.10725655]
[1617506804309,0.44426421,57260.0,57259.0,1.0]
[1617506805613,0.44426421,57260.0,57259.0,3.761]
[1617506808115,0.44423884,57262.0,57259.0,3.761]
[1617506808312,0.44423884,57262.0,57259.0,1.0]
[1617506808513,0.55046969,57266.0,57261.0,2.9866]
[1617506808712,0.55046969,57266.0,57261.0,3.10258]
[1617506808912,0.55046969,57266.0,57261.0,4.10258]
[1617506809114,0.10725655,57266.0,57265.0,1.0]
[1617506810413,0.89442457,57268.0,57265.0,1.0]
[1617506810615,0.89442457,57268.0,57267.0,0.10725655]
[1617506811218,0.89442457,57268.0,57267.0,1.10725655]
[1617506811616,0.451,57268.0,57267.0,1.10725655]
[1617506814923,0.44902053,57268.0,57267.0,1.10725655]
[1617506815522,0.44902053,57268.0,57267.0,0.10725655]
[1617506820227,0.44902053,57268.0,57267.0,1.10725655]
[1617506820627,0.44902053,57268.0,57267.0,0.10725655]
[1617506820830,0.44902053,57268.0,57267.0,1.10725655]
[1617506821027,0.44902053,57268.0,57267.0,1.22193655]
[1617506821227,0.44902053,57268.0,57267.0,0.22193655]
[1617506822628,0.44902053,57268.0,57267.0,0.10725655]
[1617506827731,0.44902053,57268.0,57267.0,1.10725655]
[1617506830132,0.44902053,57268.0,57267.0,0.10725655]
[1617506832838,1.94902053,57268.0,57267.0,0.10725655]
[1617506833039,1.94902053,57268.0,57241.0,0.57036629]
[1617506833040,5.64642053,57268.0,57241.0,0.57036629]
[1617506833438,5.64642053,57268.0,57237.0,1.5704023]
[1617506833439,6.45857548,57268.0,57237.0,1.5704023]
[1617506833839,0.44346544,57265.0,57237.0,1.0]
[1617506834040,0.2,57264.0,57237.0,1.0]
[1617506834240,0.44340262,57263.0,57237.0,1.0]
[1617506834440,0.64340262,57263.0,57237.0,1.0]
[1617506834841,0.64340262,57263.0,57258.0,0.10725655]
[1617506835040,0.44339,57262.0,57258.0,0.10725655]
[1617506836843,0.10725655,57259.0,57258.0,0.10725655]
[1617506840748,0.44342189,57265.0,57258.0,0.10725655]
[1617506840948,0.44355414,57266.0,57264.0,0.10725655]
[1617506841349,2.87875655,57267.0,57264.0,0.10725655]
[1617506842149,3.32262081,57267.0,57264.0,0.10725655]
[1617506842548,0.4438569,57266.0,57264.0,0.10725655]
[1617506842948,3.32267401,57267.0,57264.0,0.10725655]
[1617506845152,2.87875655,57267.0,57264.0,0.10725655]
[1617506845552,3.32240222,57267.0,57264.0,0.10725655]
[1617506845853,2.87875655,57267.0,57264.0,0.10725655]
[1617506847155,0.44389962,57266.0,57264.0,0.10725655]
[1617506848356,3.32268786,57267.0,57264.0,0.10725655]
[1617506849358,3.32268786,57267.0,57264.0,0.24519655]
[1617506849559,2.87875655,57267.0,57264.0,0.24519655]
[1617506857171,0.445595,57265.0,57264.0,0.24519655]
[1617506858073,0.44575412,57266.0,57264.0,0.24519655]
[1617506858472,0.4457272,57265.0,57264.0,0.24519655]
[1617506858875,0.44579878,57266.0,57264.0,0.24519655]
[1617506859878,0.44587104,57267.0,57265.0,4.6506]
[1617506860278,0.89497731,57268.0,57267.0,1.0]
[1617506860678,0.89497731,57268.0,57266.0,1.0]
[1617506860679,0.44902053,57268.0,57266.0,1.0]
[1617506860878,0.44902053,57268.0,57267.0,1.0]
[1617506864489,0.44902053,57268.0,57264.0,0.24519655]
[1617506864884,0.44902053,57268.0,57267.0,1.0]
[1617506881518,2.98222053,57268.0,57264.0,0.10725655]
[1617506881718,3.12969053,57268.0,57264.0,0.10725655]
[1617506882311,0.59649053,57268.0,57264.0,0.10725655]
[1617506882512,3.1151,57265.0,57264.0,0.10725655]
[1617506882713,3.1151,57265.0,57253.0,0.5706697]
[1617506882912,3.1151,57265.0,57249.0,0.57068249]
[1617506883112,0.59649053,57268.0,57254.0,0.10725655]
[1617506883313,3.1133,57267.0,57254.0,0.10725655]
[1617506884115,3.1133,57267.0,57255.0,1.0]
[1617506884314,3.1133,57267.0,57260.0,1.0]
[1617506884715,3.1133,57267.0,57261.0,1.0]
[1617506885116,3.1133,57267.0,57266.0,0.10725655]
[1617506887116,3.22055655,57267.0,57256.0,0.10725655]
[1617506888017,3.22055655,57267.0,57249.0,2.601]
[1617506888018,3.22055655,57267.0,57249.0,1.70825655]
[1617506889216,3.1133,57267.0,57256.0,0.10725655]
[1617506891220,0.10725655,57257.0,57256.0,0.10725655]
[1617506897927,0.10725655,57257.0,57246.0,0.57077067]
[1617506897928,3.08185655,57257.0,57246.0,0.57077067]
[1617506898128,3.08185655,57257.0,57244.0,1.57077779]
[1617506898329,3.08185655,57257.0,57244.0,0.57077779]
[1617506898528,3.08185655,57257.0,57243.0,0.57079084]
[1617506899130,2.9746,57257.0,57249.0,0.10725655]
[1617506901231,0.10725655,57250.0,57249.0,0.10725655]
[1617506901431,0.25447655,57250.0,57249.0,0.10725655]
[1617506904948,3.88627655,57250.0,57249.0,0.10725655]
[1617506907439,3.88627655,57250.0,57240.0,0.4904]
[1617506907640,3.88627655,57250.0,57238.0,1.57092417]
[1617506908241,3.88627655,57250.0,57239.0,1.0]
[1617506908543,3.88627655,57250.0,57238.0,1.57092417]
[1617506909242,3.77902,57250.0,57248.0,0.10725655]
[1617506910242,0.14722,57250.0,57248.0,0.10725655]
[1617506910443,3.3717,57263.0,57248.0,0.10725655]
[1617506911245,0.10725655,57249.0,57248.0,0.10725655]
[1617506911444,0.26035655,57249.0,57248.0,0.10725655]
[1617506913947,0.10725655,57249.0,57248.0,0.10725655]
[1617506914148,3.3717,57263.0,57248.0,0.10725655]
[1617506914349,3.3717,57263.0,57248.0,1.27816655]
[1617506914548,3.3717,57263.0,57250.0,1.0]
[1617506915250,3.3717,57263.0,57262.0,0.10725655]
[1617506915450,0.44902053,57268.0,57262.0,0.10725655]
[1617506915651,3.76222053,57268.0,57262.0,0.10725655]
[1617506916851,0.44902053,57268.0,57248.0,1.0]
[1617506917051,0.44902053,57268.0,57247.0,1.0]
[1617506917052,3.7347,57249.0,57247.0,1.0]
[1617506917251,3.7347,57249.0,57248.0,0.10725655]
[1617506919756,3.7347,57249.0,57248.0,1.10725655]
[1617506920361,3.7347,57249.0,57248.0,0.10725655]
[1617506920660,3.7347,57249.0,57248.0,1.10725655]
[1617506921259,3.84195655,57249.0,57248.0,0.10725655]
[1617506925167,3.99941655,57249.0,57248.0,0.10725655]
[1617506932682,3.99941655,57249.0,57238.0,1.57103076]
[1617506932883,0.26471655,57249.0,57238.0,1.57103076]
[1617506933081,0.26471655,57249.0,57236.0,0.5710406]
[1617506933481,0.10725655,57237.0,57236.0,0.5710406]
[1617506933682,0.10725655,57237.0,57232.0,0.10725655]
[1617506933683,0.21145655,57237.0,57234.0,0.57107668]
[1617506933882,2.5552,57235.0,57234.0,0.57107668]
[1617506934081,2.5552,57235.0,57232.0,0.10725655]
[1617506934082,2.5552,57235.0,57232.0,0.67833749]
[1617506935384,2.5552,57235.0,57234.0,0.57242245]
[1617506936385,2.5552,57235.0,57234.0,1.57242245]
[1617506936985,2.5552,57235.0,57234.0,0.57242245]
[1617506939788,4.0552,57235.0,57234.0,0.57242245]
[1617506939989,4.0552,57235.0,57226.0,0.57177434]
[1617506939990,5.0552,57235.0,57226.0,0.57177434]
[1617506940189,4.0552,57235.0,57226.0,0.57177434]
[1617506940389,4.0552,57235.0,57224.0,0.57178965]
[1617506940589,2.5552,57235.0,57224.0,0.57178965]
[1617506940989,2.5552,57235.0,57223.0,0.57178943]
[1617506941390,2.5552,57235.0,57225.0,0.10725655]
[1617506941790,2.5552,57235.0,57221.0,0.5718025]
[1617506942191,0.1042,57237.0,57221.0,0.5718025]
[1617506942392,2.7,57238.0,57221.0,0.5718025]
[1617506942393,2.7471,57224.0,57221.0,0.5718025]
[1617506942591,2.87902,57224.0,57221.0,0.5718025]
[1617506942792,2.87902,57224.0,57220.0,0.57179793]
[1617506943391,2.87902,57224.0,57223.0,0.10725655]
[1617506945494,2.98627655,57224.0,57223.0,0.10725655]
[1617506950501,2.85435655,57224.0,57223.0,0.10725655]
[1617506952103,2.98015655,57224.0,57223.0,0.10725655]
[1617506952305,2.98015655,57224.0,57213.0,0.56982727]
[1617506952704,2.98015655,57224.0,57208.0,0.56997632]
[1617506953104,2.98015655,57224.0,57197.0,1.0]
[1617506953105,0.2,57223.0,57205.0,0.57000425]
[1617506953505,0.10725655,57206.0,57204.0,0.57002461]
[1617506953705,0.21946655,57206.0,57204.0,0.57002461]
[1617506953904,0.21946655,57206.0,57202.0,0.57004135]
[1617506954304,0.21946655,57206.0,57201.0,0.57004856]
[1617506954706,0.21946655,57206.0,57200.0,0.57004702]
[1617506955307,0.21946655,57206.0,57201.0,0.57005164]
[1617506955707,0.21946655,57206.0,57199.0,0.10725655]
[1617506955708,0.21946655,57206.0,57202.0,0.57004924]
[1617506956108,0.21946655,57206.0,57201.0,0.57004585]
[1617506956509,0.21946655,57206.0,57200.0,0.57004889]
[1617506957011,0.10725655,57206.0,57200.0,0.57004889]
[1617506957415,0.10725655,57206.0,57200.0,1.57004889]
[1617506957613,0.10725655,57206.0,57205.0,0.10725655]
[1617506958612,0.10623233,57206.0,57205.0,0.10725655]
[1617506960215,0.10623233,57206.0,57205.0,1.10725655]
[1617506961217,0.10623233,57206.0,57205.0,1.67729586]
[1617506962124,0.10623233,57206.0,57205.0,1.10725655]
[1617506963919,0.10623233,57206.0,57205.0,0.10725655]
[1617506965122,0.10623233,57206.0,57205.0,1.10725655]
[1617506965320,0.10623233,57206.0,57205.0,0.10725655]
[1617506967223,0.10623233,57206.0,57205.0,1.10725655]
[1617506967423,0.10623233,57206.0,57205.0,1.26868655]
[1617506968526,0.10520812,57206.0,57205.0,1.26868655]
[1617506975532,0.10520812,57206.0,57205.0,1.10725655]
[1617506977132,0.10520812,57206.0,57205.0,3.99535655]
[1617506979034,0.10520812,57206.0,57205.0,4.15508655]
[1617506979734,0.10520812,57206.0,57205.0,4.29848139]
[1617506980638,0.4707,57229.0,57205.0,2.91038139]
[1617506980836,0.4707,57229.0,57228.0,2.6502]
[1617506981037,0.4707,57229.0,57228.0,2.76416]
[1617506981435,0.4707,57229.0,57228.0,3.76416]
[1617506981835,0.4707,57229.0,57228.0,3.87141655]
[1617506983940,0.4707,57229.0,57228.0,1.22121655]
[1617506986841,3.4116,57229.0,57228.0,1.22121655]
[1617506987741,3.4016,57229.0,57228.0,1.22121655]
[1617506994448,0.4607,57229.0,57228.0,1.22121655]
[1617506995048,0.4607,57229.0,57228.0,4.59991655]
[1617507001460,0.4607,57229.0,57228.0,1.22121655]
[1617507001661,0.4607,57229.0,57228.0,1.10725655]
[1617507002363,3.1974,57229.0,57228.0,1.10725655]
[1617507005367,0.4607,57229.0,57228.0,1.10725655]
[1617507007069,3.558,57229.0,57228.0,1.10725655]
[1617507009573,0.4607,57229.0,57228.0,1.10725655]
[1617507009972,0.4607,57229.0,57228.0,3.87434655]
[1617507010172,0.44179049,57248.0,57228.0,3.87434655]
[1617507010372,0.44179049,57248.0,57228.0,2.76084655]
[1617507010572,1.00394154,57282.0,57228.0,2.76084655]
[1617507010573,0.4419095,57250.0,57247.0,1.0]
[1617507010772,0.4419095,57250.0,57247.0,1.14053]
[1617507010974,0.4419095,57250.0,57247.0,0.14053]
[1617507011186,0.44178373,57255.0,57249.0,1.0]
[1617507011575,0.44190195,57257.0,57254.0,1.0]
[1617507011975,0.10725655,57258.0,57256.0,1.10725655]
[1617507018081,0.10725655,57258.0,57256.0,0.10725655]
[1617507018692,3.2853,57257.0,57248.0,1.0]
[1617507018882,3.2853,57257.0,57238.0,1.0]
[1617507019082,0.25484655,57258.0,57238.0,1.0]
[1617507019281,3.2857,57239.0,57238.0,1.0]
[1617507019481,3.43285,57239.0,57237.0,1.0]
[1617507019683,3.43285,57239.0,57238.0,1.0]
[1617507020083,3.43285,57239.0,57238.0,1.10725655]
[1617507021285,0.14715,57239.0,57238.0,1.10725655]
[1617507021483,0.14715,57239.0,57238.0,4.14445655]
[1617507021684,0.10725655,57246.0,57238.0,4.14445655]
[1617507022083,0.10725655,57246.0,57245.0,0.10725655]
[1617507022483,0.10725655,57246.0,57245.0,1.10725655]
[1617507022884,0.44135116,57261.0,57245.0,1.10725655]
[1617507023286,0.44135116,57261.0,57254.0,1.0]
[1617507023487,0.93136104,57263.0,57254.0,1.0]
[1617507023686,0.93136104,57263.0,57252.0,1.0]
[1617507023889,1.10071104,57263.0,57248.0,1.0]
[1617507024089,0.10725655,57249.0,57247.0,1.0]
[1617507024288,0.26353655,57249.0,57247.0,1.0]
[1617507025189,0.15628,57249.0,57247.0,1.0]
[1617507025388,0.44132098,57260.0,57247.0,1.0]
[1617507025590,0.4897,57263.0,57247.0,1.0]
[1617507025591,0.44144273,57261.0,57247.0,1.0]
[1617507025990,0.44144273,57261.0,57259.0,0.10725655]
[1617507026590,0.44144273,57261.0,57247.0,1.0]
[1617507028090,0.55561273,57261.0,57251.0,0.10725655]
[1617507028290,0.55561273,57261.0,57245.0,1.0]
[1617507028490,0.55561273,57261.0,57234.0,0.4873]
[1617507028491,2.8534,57246.0,57237.0,1.0]
[1617507028692,3.01783,57246.0,57237.0,1.0]
[1617507028895,3.01783,57246.0,57234.0,1.4873]
[1617507029694,3.01783,57246.0,57235.0,1.0]
[1617507030095,3.01783,57246.0,57234.0,0.4873]
[1617507030096,3.01783,57246.0,57241.0,0.10725655]
[1617507030897,3.01783,57246.0,57234.0,1.0]
[1617507031097,1.5,57245.0,57225.0,0.57056651]
[1617507031499,0.16443,57246.0,57217.0,0.71320814]
[1617507031500,3.2453,57226.0,57217.0,0.5706015]
[1617507031697,3.36292,57226.0,57217.0,0.5706015]
[1617507031897,0.11762,57226.0,57217.0,0.5706015]
[1617507032102,0.11762,57226.0,57225.0,4.03805655]
[1617507033101,0.44095061,57252.0,57225.0,4.03805655]
[1617507033503,0.44184634,57248.0,57232.0,1.0]
[1617507033702,0.44184634,57248.0,57242.0,3.6479]
[1617507033902,0.44184634,57248.0,57247.0,1.0]
[1617507034104,0.54910289,57248.0,57247.0,1.10725655]
[1617507034505,0.10725655,57248.0,57247.0,1.10725655]
[1617507035704,0.10725655,57248.0,57247.0,0.10725655]
[1617507036105,0.10725655,57248.0,57247.0,1.10725655]
[1617507044517,0.4842,57255.0,57247.0,1.10725655]
[1617507044918,0.4842,57255.0,57254.0,1.0]
[1617507045118,0.4842,57255.0,57254.0,1.1566]
[1617507045318,0.4842,57255.0,57254.0,0.1566]
[1617507046121,0.59145655,57255.0,57253.0,1.0]
[1617507050126,0.59145655,57255.0,57254.0,0.10725655]
[1617507050326,0.59145655,57255.0,57254.0,0.22425655]
[1617507051127,0.59145655,57255.0,57254.0,1.22425655]
[1617507053130,0.59145655,57255.0,57254.0,0.22425655]
[1617507054435,0.59145655,57255.0,57254.0,3.83485655]
[1617507058040,0.59145655,57255.0,57254.0,4.83485655]
[1617507063946,0.59145655,57255.0,57254.0,1.22425655]
[1617507064648,4.18785655,57255.0,57254.0,1.22425655]
[1617507065849,4.18785655,57255.0,57254.0,0.22425655]
[1617507066049,4.36000655,57255.0,57254.0,0.10725655]
[1617507066251,4.36000655,57255.0,57245.0,0.10725655]
[1617507066650,4.80376264,57255.0,57245.0,0.10725655]
[1617507067050,0.44380315,57254.0,57245.0,0.10725655]
[1617507067249,0.44380315,57254.0,57246.0,1.0]
[1617507067451,4.80383264,57255.0,57246.0,1.0]
[1617507067651,4.80383264,57255.0,57247.0,1.0]
[1617507067854,0.44378313,57254.0,57245.0,0.10725655]
[1617507068252,0.10725655,57246.0,57245.0,0.10725655]
[1617507070953,0.10725655,57246.0,57245.0,1.10725655]
[1617507071753,0.10725655,57246.0,57245.0,4.27475655]
[1617507071954,0.10725655,57246.0,57245.0,3.27475655]
[1617507072253,0.10725655,57252.0,57245.0,4.27475655]
[1617507072454,0.10725655,57252.0,57245.0,4.40881655]
[1617507072653,0.10725655,57252.0,57245.0,3.40881655]
[1617507073054,0.10725655,57252.0,57251.0,1.0]
[1617507074255,0.10725655,57252.0,57251.0,1.10725655]
[1617507078061,0.10725655,57252.0,57251.0,0.10725655]
[1617507078261,0.10725655,57252.0,57251.0,1.10725655]
[1617507082266,0.10725655,57252.0,57251.0,0.10725655]
[1617507082668,0.10725655,57252.0,57251.0,1.10725655]
[1617507087576,2.90665655,57252.0,57251.0,1.10725655]
[1617507088379,0.10725655,57252.0,57251.0,1.10725655]
[1617507088978,0.10725655,57252.0,57251.0,3.69065655]
[1617507093585,0.10725655,57252.0,57251.0,1.10725655]
[1617507093786,0.25947655,57252.0,57251.0,1.10725655]
[1617507096487,0.25947655,57252.0,57251.0,0.10725655]
[1617507096687,0.25947655,57252.0,57251.0,1.10725655]
[1617507100291,0.10725655,57252.0,57251.0,1.10725655]
[1617507103293,0.10725655,57252.0,57251.0,1.25387655]
[1617507114708,0.4842,57255.0,57251.0,1.25387655]
[1617507114907,0.4842,57255.0,57252.0,2.7631]
[1617507115108,0.4842,57255.0,57252.0,3.7631]
[1617507115308,0.4842,57255.0,57254.0,1.0]
[1617507143255,0.44690845,57270.0,57254.0,1.0]
[1617507143457,0.44690845,57270.0,57269.0,2.5461]
[1617507143657,0.44710828,57272.0,57269.0,3.65041]
[1617507144056,0.44710828,57272.0,57269.0,2.65041]
[1617507144257,2.6747,57282.0,57271.0,1.0]
[1617507144258,0.44722195,57274.0,57271.0,1.0]
[1617507144658,0.44734098,57275.0,57269.0,2.65041]
[1617507144860,0.44734098,57275.0,57273.0,0.10725655]
[1617507145059,0.44759023,57277.0,57276.0,1.0]
[1617507145258,0.44759023,57277.0,57274.0,1.0]
[1617507145458,0.44759023,57277.0,57276.0,1.0]
[1617507145859,0.44768304,57278.0,57276.0,1.0]
[1617507146058,0.44768304,57278.0,57275.0,1.0]
[1617507146259,0.44766106,57277.0,57274.0,1.0]
[1617507146659,3.28526636,57275.0,57273.0,1.10725655]
[1617507148361,2.8376,57275.0,57273.0,1.10725655]
[1617507148559,2.8376,57275.0,57273.0,0.10725655]
[1617507148762,2.8376,57275.0,57273.0,1.10725655]
[1617507150360,2.8376,57275.0,57273.0,0.10725655]
[1617507150763,0.44747255,57279.0,57274.0,1.0]
[1617507150962,0.44747255,57279.0,57278.0,3.0333]
[1617507152164,0.10725655,57280.0,57278.0,3.0333]
[1617507152766,0.10725655,57280.0,57279.0,0.10725655]
[1617507156667,0.10725655,57280.0,57279.0,1.10725655]
[1617507159867,0.44783983,57286.0,57279.0,1.10725655]
[1617507160269,0.44783983,57286.0,57285.0,3.2743]
[1617507160467,0.44783983,57286.0,57285.0,3.40513]
[1617507160868,1.0273325,57287.0,57285.0,4.51238655]
[1617507161269,1.0273325,57287.0,57286.0,1.0]
[1617507164872,0.57935655,57287.0,57286.0,1.0]
[1617507165573,1.02732808,57287.0,57286.0,1.0]
[1617507165774,1.02732808,57287.0,57285.0,0.23808655]
[1617507165973,0.57935655,57287.0,57285.0,0.23808655]
[1617507166173,0.63145655,57287.0,57286.0,1.0]
[1617507166375,0.57935655,57287.0,57286.0,1.0]
[1617507166573,0.4721,57287.0,57286.0,1.0]
[1617507169478,4.1722,57287.0,57286.0,1.0]
[1617507176989,0.57935655,57287.0,57286.0,1.0]
[1617507177489,0.57935655,57287.0,57286.0,4.3636]
[1617507178893,0.57935655,57287.0,57285.0,0.10725655]
[1617507179091,4.26870655,57287.0,57285.0,1.10725655]
[1617507180092,4.25870655,57287.0,57285.0,1.10725655]
[1617507181794,4.25870655,57287.0,57286.0,1.0]
[1617507182797,4.25870655,57287.0,57285.0,0.10725655]
[1617507184599,0.69480655,57287.0,57285.0,0.10725655]
[1617507184800,0.56935655,57287.0,57285.0,0.10725655]
[1617507185900,0.56935655,57287.0,57286.0,1.0]
[1617507186100,0.56935655,57287.0,57286.0,4.2055]
[1617507186501,0.56935655,57287.0,57285.0,0.10725655]
[1617507186701,4.22139655,57287.0,57285.0,1.10725655]
[1617507186901,4.22139655,57287.0,57285.0,0.10725655]
[1617507189906,0.68469655,57287.0,57285.0,0.10725655]
[1617507190804,0.68469655,57287.0,57286.0,2.9457]
[1617507191406,2.18469655,57287.0,57285.0,0.10725655]
[1617507191619,3.0003,57286.0,57276.0,1.0]
[1617507191825,1.5,57285.0,57265.0,0.5685447]
[1617507192213,3.6309,57264.0,57262.0,0.4504]
[1617507192422,3.79551,57264.0,57262.0,0.4504]
[1617507192606,3.79551,57264.0,57261.0,0.0518]
[1617507193011,3.79551,57264.0,57263.0,0.10725655]
[1617507195009,3.90276655,57264.0,57263.0,0.10725655]
[1617507197709,3.90276655,57264.0,57263.0,1.10725655]
[1617507199111,3.90276655,57264.0,57263.0,0.10725655]
[1617507200310,3.90276655,57264.0,57263.0,1.10725655]
[1617507200710,3.95476655,57264.0,57263.0,1.10725655]
[1617507200910,3.90276655,57264.0,57263.0,1.10725655]
[1617507202211,3.90276655,57264.0,57263.0,0.10725655]
[1617507202412,3.90276655,57264.0,57263.0,1.10725655]
[1617507204215,3.90276655,57264.0,57263.0,0.10725655]
[1617507208822,3.90276655,57264.0,57263.0,1.10725655]
[1617507213726,3.90276655,57264.0,57263.0,0.10725655]
[1617507214126,3.90276655,57264.0,57263.0,1.10725655]
[1617507214727,3.90276655,57264.0,57263.0,0.10725655]
[1617507215528,3.90276655,57264.0,57263.0,1.10725655]
[1617507215728,3.73815655,57264.0,57263.0,1.10725655]
[1617507216428,3.73815655,57264.0,57263.0,0.10725655]
[1617507216629,3.86570655,57264.0,57263.0,0.10725655]